bitfinex-derivatives/quotes_BTCF0:USTF0_20250704
["timestamp","ask_amount","ask_price","bid_price","bid_amount"]
[1751626343637,0.54266307,108990.0,108980.0,0.86143876]
[1751626347239,0.57566307,108990.0,108980.0,0.86143876]
[1751626357743,0.32545364,108990.0,108980.0,0.86143876]
[1751626357949,0.57566307,108990.0,108980.0,0.86143876]
[1751626359252,0.57566307,108990.0,108980.0,0.39707133]
[1751626359452,0.60646307,108990.0,108980.0,0.39707133]
[1751626359653,2.03311363,108990.0,108980.0,0.0570467]
[1751626359952,0.1834921,108960.0,108950.0,0.84557006]
[1751626360158,1.26572841,108960.0,108950.0,0.97680049]
[1751626360450,1.68852841,108960.0,108950.0,0.34072554]
[1751626360751,1.71932841,108960.0,108950.0,0.77444387]
[1751626361253,1.71932841,108960.0,108950.0,0.83241525]
[1751626361851,1.72032841,108960.0,108950.0,0.83841525]
[1751626366150,1.35952841,108960.0,108950.0,0.83841525]
[1751626366559,1.35952841,108960.0,108950.0,0.86991525]
[1751626367559,1.32872841,108960.0,108950.0,0.86991525]
[1751626377165,1.07851898,108960.0,108950.0,0.86991525]
[1751626377366,1.32872841,108960.0,108950.0,0.86991525]
[1751626380762,1.07851898,108960.0,108950.0,0.86991525]
[1751626381063,1.32872841,108960.0,108950.0,0.86991525]
[1751626387669,1.57893784,108960.0,108950.0,0.83841525]
[1751626387875,1.61033784,108960.0,108950.0,0.83841525]
[1751626388270,1.61033784,108960.0,108950.0,0.78344387]
[1751626388471,1.36012841,108960.0,108950.0,0.78344387]
[1751626389277,1.36012841,108960.0,108950.0,0.85657496]
[1751626390976,1.10991898,108960.0,108950.0,0.85657496]
[1751626391173,1.36012841,108960.0,108950.0,0.85657496]
[1751626393080,1.61033784,108960.0,108950.0,0.85657496]
[1751626393267,2.32113784,108960.0,108950.0,0.50163444]
[1751626393471,2.34376744,108960.0,108950.0,0.57035518]
[1751626394474,2.34376744,108960.0,108950.0,0.55670185]
[1751626395679,2.34376532,108960.0,108950.0,0.55670185]
[1751626395874,2.34376532,108960.0,108950.0,0.53757631]
[1751626396475,1.74355589,108960.0,108950.0,0.78778574]
[1751626397378,1.36032841,108960.0,108950.0,0.78778574]
[1751626397678,1.38295084,108960.0,108950.0,0.85038574]
[1751626398984,0.27010141,108960.0,108950.0,0.85038574]
[1751626399281,1.32924841,108960.0,108950.0,0.85038574]
[1751626400180,1.07923898,108960.0,108950.0,0.79531833]
[1751626400380,1.04753898,108960.0,108950.0,0.79531833]
[1751626400581,1.04753898,108960.0,108950.0,0.82641833]
[1751626400883,0.21577898,108960.0,108950.0,0.82641833]
[1751626401072,1.04749898,108960.0,108950.0,0.82641833]
[1751626401979,1.29770841,108960.0,108950.0,0.82641833]
[1751626402587,1.29770841,108960.0,108950.0,0.89954942]
[1751626406384,1.04749898,108960.0,108950.0,0.89954942]
[1751626406583,1.29770841,108960.0,108950.0,0.89954942]
[1751626410484,0.46598841,108960.0,108950.0,0.89954942]
[1751626410783,0.18547898,108960.0,108950.0,1.63034942]
[1751626411791,0.18547898,108960.0,108950.0,1.88055885]
[1751626412176,0.18547898,108960.0,108950.0,1.63034942]
[1751626413479,0.00198688,108960.0,108950.0,1.63034942]
[1751626413681,0.00198688,108960.0,108950.0,1.88055885]
[1751626413882,0.00198688,108960.0,108950.0,1.899878]
[1751626414985,0.00198688,108960.0,108950.0,1.82674691]
[1751626415283,0.00198688,108960.0,108950.0,1.90012217]
[1751626426690,0.00198688,108960.0,108950.0,1.9000811]
[1751626431993,0.00198688,108960.0,108950.0,2.7322011]
[1751626434095,0.00198688,108960.0,108950.0,3.0930011]
[1751626435297,0.00198688,108960.0,108950.0,3.0931285]
[1751626437000,0.18547898,108960.0,108950.0,3.0931285]
[1751626438797,0.18547898,108960.0,108950.0,3.09316126]
[1751626438999,0.18547898,108960.0,108950.0,2.73236126]
[1751626439299,0.00198688,108960.0,108950.0,2.73236126]
[1751626441803,0.18547898,108960.0,108950.0,2.73236126]
[1751626442101,0.18547898,108960.0,108950.0,2.45105183]
[1751626442301,0.27897898,108960.0,108950.0,2.45105183]
[1751626443102,0.27897898,108960.0,108950.0,2.45110417]
[1751626443601,0.27897898,108960.0,108950.0,2.41960417]
[1751626444102,0.27897898,108960.0,108950.0,1.58748417]
[1751626444303,0.27897898,108960.0,108950.0,0.96727474]
[1751626444603,0.27897898,108960.0,108950.0,1.58748417]
[1751626445304,0.27897898,108960.0,108950.0,1.21748417]
[1751626445499,0.52918841,108960.0,108950.0,1.21748417]
[1751626445800,0.27897898,108960.0,108950.0,1.21748417]
[1751626446604,0.27897898,108960.0,108950.0,1.21734855]
[1751626447206,0.52918841,108960.0,108950.0,1.21734855]
[1751626447405,0.27897898,108960.0,108950.0,1.21734855]
[1751626450215,0.27897898,108960.0,108950.0,0.85654855]
[1751626450515,0.27897898,108960.0,108950.0,1.21734855]
[1751626453914,0.27897898,108960.0,108950.0,0.85654855]
[1751626454118,0.27897898,108960.0,108950.0,1.21734855]
[1751626456922,0.27897898,108960.0,108950.0,0.85654855]
[1751626457122,0.27897898,108960.0,108950.0,1.21734855]
[1751626457926,0.27897898,108960.0,108950.0,0.85654855]
[1751626458122,0.27897898,108960.0,108950.0,1.21734855]
[1751626461130,0.27897898,108960.0,108950.0,1.56734855]
[1751626461921,0.03238688,108960.0,108950.0,1.85035798]
[1751626462229,0.00198688,108960.0,108950.0,1.88085798]
[1751626462632,0.18547898,108960.0,108950.0,1.88085798]
[1751626464233,0.00198688,108960.0,108950.0,2.24165798]
[1751626464434,0.00198688,108960.0,108950.0,2.16832379]
[1751626464632,0.00198688,108960.0,108950.0,2.26010291]
[1751626464827,0.00198688,108960.0,108950.0,2.16832379]
[1751626465029,0.00198688,108960.0,108950.0,2.41702379]
[1751626465729,0.00198688,108960.0,108950.0,2.49043289]
[1751626468135,0.00198688,108960.0,108950.0,2.41702379]
[1751626471040,0.00198688,108960.0,108950.0,2.49043289]
[1751626472443,0.00198688,108960.0,108950.0,2.41702379]
[1751626473342,0.00198688,108960.0,108950.0,2.50880291]
[1751626478440,0.18547898,108960.0,108950.0,2.50880291]
[1751626478646,0.18547898,108960.0,108950.0,3.24978379]
[1751626478846,0.00198688,108960.0,108950.0,3.24978379]
[1751626479046,0.00198688,108960.0,108950.0,2.41702379]
[1751626479646,0.18547888,108960.0,108950.0,2.41702379]
[1751626479946,0.18547888,108960.0,108950.0,2.49039528]
[1751626481247,0.18547888,108960.0,108950.0,2.24169528]
[1751626481648,0.00198688,108960.0,108950.0,2.24169528]
[1751626486551,0.18547898,108960.0,108950.0,2.24169528]
[1751626487247,0.00198688,108960.0,108950.0,2.24169528]
[1751626487651,0.18547898,108960.0,108950.0,2.24169528]
[1751626489848,0.18547898,108960.0,108950.0,1.52009528]
[1751626490047,0.18547898,108960.0,108950.0,1.88089528]
[1751626490954,0.21547898,108960.0,108950.0,1.50039528]
[1751626491251,0.21547898,108960.0,108950.0,2.67291528]
[1751626491447,0.24827898,108960.0,108950.0,2.42270585]
[1751626491648,0.24827898,108960.0,108950.0,2.67291528]
[1751626491951,0.24827898,108960.0,108950.0,2.42270585]
[1751626494052,0.24827898,108960.0,108950.0,2.38990585]
[1751626494253,0.28087898,108960.0,108950.0,2.38990585]
[1751626494960,0.28087898,108960.0,108950.0,1.55738585]
[1751626497559,0.28087898,108960.0,108950.0,1.84009528]
[1751626497859,0.28087898,108960.0,108950.0,1.58988585]
[1751626500061,0.28087898,108960.0,108950.0,1.60829348]
[1751626503368,0.28087898,108960.0,108950.0,1.58579348]
[1751626503868,0.28087898,108960.0,108950.0,1.56742169]
[1751626505167,0.28087898,108960.0,108950.0,1.60002169]
[1751626507870,0.28087898,108960.0,108950.0,1.85023112]
[1751626508170,0.21547898,108960.0,108950.0,1.60002169]
[1751626508560,0.21547898,108960.0,108950.0,1.88253112]
[1751626509371,0.21547898,108960.0,108950.0,1.63232169]
[1751626511276,0.18547898,108960.0,108950.0,1.63232169]
[1751626511776,0.18547898,108960.0,108950.0,1.55891436]
[1751626513973,0.18547898,108960.0,108950.0,1.65069348]
[1751626517186,0.18547898,108960.0,108950.0,1.43069348]
[1751626519987,0.18547898,108960.0,108950.0,1.67069348]
[1751626521086,0.18547898,108960.0,108950.0,1.63839348]
[1751626521289,0.24667898,108960.0,108950.0,1.63839348]
[1751626521588,0.24667898,108960.0,108950.0,1.40839348]
[1751626522794,0.24667898,108960.0,108950.0,1.04759348]
[1751626522988,0.49688841,108960.0,108950.0,1.04759348]
[1751626524091,0.24667898,108960.0,108950.0,1.04759348]
[1751626525488,0.27997898,108960.0,108950.0,1.04759348]
[1751626525686,0.53018841,108960.0,108950.0,1.02923946]
[1751626527597,0.27997898,108960.0,108950.0,1.02923946]
[1751626527896,0.21647898,108960.0,108950.0,1.39003946]
[1751626530302,0.21647898,108960.0,108950.0,1.42203946]
[1751626534408,0.21647898,108960.0,108950.0,0.98781436]
[1751626535203,0.21647898,108960.0,108950.0,1.34861436]
[1751626535404,0.21647898,108960.0,108950.0,1.42203946]
[1751626535698,0.46668841,108960.0,108950.0,1.13983003]
[1751626535904,1.10899784,108960.0,108950.0,0.78321436]
[1751626536205,0.89048841,108960.0,108950.0,0.78321436]
[1751626538102,0.64027898,108960.0,108950.0,0.78321436]
[1751626538302,0.89048841,108960.0,108950.0,0.78321436]
[1751626541701,0.89048841,108960.0,108950.0,0.85663946]
[1751626544507,2.32221784,108960.0,108950.0,0.299]
[1751626544709,2.32221784,108960.0,108950.0,0.3724251]
[1751626545511,2.34489265,108960.0,108950.0,0.299]
[1751626546512,0.1835089,108950.0,108940.0,0.0934251]
[1751626546711,0.1835257,108940.0,108930.0,0.8409213]
[1751626546908,0.1835425,108930.0,108920.0,0.5181678]
[1751626547207,1.43726136,108930.0,108920.0,0.3734251]
[1751626547512,0.88984537,108930.0,108920.0,0.49719466]
[1751626547813,0.88984537,108930.0,108920.0,0.74740409]
[1751626548114,0.88684537,108930.0,108920.0,0.74740409]
[1751626548810,0.88684537,108930.0,108920.0,0.74940409]
[1751626549105,0.95989449,108930.0,108920.0,0.74940409]
[1751626549311,0.59809449,108930.0,108920.0,0.49919466]
[1751626549511,0.59809449,108930.0,108920.0,0.73576893]
[1751626549713,0.59809449,108930.0,108920.0,0.76826893]
[1751626549912,0.71068506,108930.0,108920.0,0.76926893]
[1751626550212,0.96089449,108930.0,108920.0,0.78288609]
[1751626551312,0.71068506,108930.0,108920.0,0.78288609]
[1751626551514,0.96089449,108930.0,108920.0,0.78288609]
[1751626552711,0.60009449,108930.0,108920.0,1.13934405]
[1751626553017,1.09300516,108930.0,108920.0,1.75175348]
[1751626553216,1.09300516,108930.0,108920.0,1.78255348]
[1751626553420,0.25908516,108930.0,108920.0,1.78255348]
[1751626554008,0.07554256,108930.0,108920.0,1.78255348]
[1751626554207,0.00249344,108930.0,108920.0,1.78255348]
[1751626554619,0.00249344,108930.0,108920.0,2.03276291]
[1751626554828,0.00249344,108930.0,108920.0,1.78255348]
[1751626556224,0.00249344,108930.0,108920.0,1.28213462]
[1751626556425,0.00249344,108930.0,108920.0,1.78255348]
[1751626557724,0.00249344,108930.0,108920.0,1.53241421]
[1751626558325,0.00298688,108930.0,108920.0,1.53241421]
[1751626560528,0.00298688,108930.0,108920.0,1.54665318]
[1751626562723,0.00298688,108930.0,108920.0,1.87035787]
[1751626562929,0.00298688,108930.0,108920.0,1.88964664]
[1751626563729,0.00298688,108930.0,108920.0,1.63936705]
[1751626563929,0.00298688,108930.0,108920.0,1.88960472]
[1751626564227,0.00298688,108930.0,108920.0,2.13830472]
[1751626566135,0.00298688,108930.0,108920.0,1.88802513]
[1751626567033,0.00298688,108930.0,108920.0,2.13830982]
[1751626567534,0.00298688,108930.0,108920.0,2.12410767]
[1751626570037,0.00298688,108930.0,108920.0,1.87382808]
[1751626570736,0.00298688,108930.0,108920.0,2.70722808]
[1751626573840,0.00298688,108930.0,108920.0,1.87382808]
[1751626574036,0.00298688,108930.0,108920.0,2.70706808]
[1751626574238,0.00298688,108930.0,108920.0,1.80040298]
[1751626574438,0.00298688,108930.0,108920.0,2.63364298]
[1751626576538,0.18652948,108930.0,108920.0,2.59272298]
[1751626576735,0.24932948,108930.0,108920.0,2.66601795]
[1751626577040,0.24932948,108930.0,108920.0,2.27220283]
[1751626577233,0.28102948,108930.0,108920.0,2.27220283]
[1751626578143,0.28102948,108930.0,108920.0,2.28144484]
[1751626578642,0.28102948,108930.0,108920.0,1.44816484]
[1751626578843,0.28102948,108930.0,108920.0,1.43892283]
[1751626579543,0.09748688,108930.0,108920.0,1.78892283]
[1751626579740,0.09748688,108930.0,108920.0,1.68926374]
[1751626580143,0.09748688,108930.0,108920.0,2.03926374]
[1751626580344,0.09748688,108930.0,108920.0,1.96596877]
[1751626581346,0.16915817,108930.0,108920.0,1.96596877]
[1751626581645,0.16915817,108930.0,108920.0,2.05774789]
[1751626581845,0.16915817,108930.0,108920.0,1.80904789]
[1751626582045,0.16915817,108930.0,108920.0,1.81804035]
[1751626583748,0.16915817,108930.0,108920.0,1.34851985]
[1751626583950,0.16915817,108930.0,108920.0,1.84914035]
[1751626584549,0.16915817,108930.0,108920.0,1.34851985]
[1751626584746,0.16915817,108930.0,108920.0,1.84914035]
[1751626585452,0.35270077,108930.0,108920.0,1.84914035]
[1751626585757,0.35270077,108930.0,108920.0,1.86914035]
[1751626586851,0.16915817,108930.0,108920.0,1.86914035]
[1751626587648,0.06578688,108930.0,108920.0,1.86914035]
[1751626587950,0.00298688,108930.0,108920.0,2.1515506]
[1751626589642,0.00298688,108930.0,108920.0,1.90124035]
[1751626589843,0.00298688,108930.0,108920.0,1.6508947]
[1751626596853,0.00298688,108930.0,108920.0,1.90116955]
[1751626597158,0.00298688,108930.0,108920.0,1.80939043]
[1751626599757,0.00298688,108930.0,108920.0,1.80781558]
[1751626600052,0.00298688,108930.0,108920.0,1.8995947]
[1751626601664,0.00298688,108930.0,108920.0,2.7332747]
[1751626602163,0.00298688,108930.0,108920.0,1.8995947]
[1751626602364,0.00298688,108930.0,108920.0,2.7331947]
[1751626604567,0.00298688,108930.0,108920.0,2.48291985]
[1751626604762,0.00298688,108930.0,108920.0,2.7331947]
[1751626605465,0.00298688,108930.0,108920.0,2.4844947]
[1751626606865,0.00298688,108930.0,108920.0,2.39271558]
[1751626607262,0.00298688,108930.0,108920.0,2.14244073]
[1751626607465,0.00298688,108930.0,108920.0,2.39271558]
[1751626610472,0.00298688,108930.0,108920.0,2.39275558]
[1751626610672,0.06638688,108930.0,108920.0,1.55911558]
[1751626610868,0.06638688,108930.0,108920.0,2.39275558]
[1751626611069,0.09848688,108930.0,108920.0,2.39275558]
[1751626614074,0.17329624,108930.0,108920.0,2.39275558]
[1751626616476,0.17329624,108930.0,108920.0,2.46614837]
[1751626617776,0.17329624,108930.0,108920.0,2.71646088]
[1751626618174,0.17329624,108930.0,108920.0,2.64306809]
[1751626618777,0.17329624,108930.0,108920.0,2.73484721]
[1751626618976,0.17329624,108930.0,108920.0,2.23425985]
[1751626619176,0.17329624,108930.0,108920.0,2.73484721]
[1751626621079,0.17329624,108930.0,108920.0,2.23425985]
[1751626621280,0.17329624,108930.0,108920.0,2.73484721]
[1751626622480,0.17329624,108930.0,108920.0,1.90120721]
[1751626622675,0.17329624,108930.0,108920.0,1.40061985]
[1751626622885,0.60713252,108930.0,108920.0,1.48694195]
[1751626623074,0.60713252,108930.0,108920.0,1.12614195]
[1751626623281,0.60713252,108930.0,108920.0,1.37643563]
[1751626623282,0.35683884,108930.0,108920.0,1.37643563]
[1751626623476,0.35683884,108930.0,108920.0,0.8852121]
[1751626623782,0.35683884,108930.0,108920.0,1.45922332]
[1751626624079,0.17329624,108930.0,108920.0,1.45922332]
[1751626624281,0.17329624,108930.0,108920.0,0.95863596]
[1751626624480,0.17329624,108930.0,108920.0,1.45922332]
[1751626624883,0.35683804,108930.0,108920.0,1.45922332]
[1751626625179,0.17329624,108930.0,108920.0,1.45002332]
[1751626625583,0.17329624,108930.0,108920.0,1.80002332]
[1751626625785,0.17329624,108930.0,108920.0,1.72659946]
[1751626625970,0.17329624,108930.0,108920.0,1.47630578]
[1751626626175,0.17329624,108930.0,108920.0,1.8312872]
[1751626626371,0.17329624,108930.0,108920.0,1.75789946]
[1751626627081,0.17329624,108930.0,108920.0,1.83128672]
[1751626628187,0.17329624,108930.0,108920.0,1.48128672]
[1751626628486,0.17329624,108930.0,108920.0,1.86128672]
[1751626628689,0.17329624,108930.0,108920.0,1.89128672]
[1751626630789,0.17329624,108930.0,108920.0,1.39069936]
[1751626630989,0.17329624,108930.0,108920.0,1.89128672]
[1751626631188,0.14119624,108930.0,108920.0,1.89128672]
[1751626632690,0.14119624,108930.0,108920.0,1.89127388]
[1751626633090,0.14119624,108930.0,108920.0,1.81789946]
[1751626633587,0.11029624,108930.0,108920.0,1.89127415]
[1751626633792,0.11029624,108930.0,108920.0,1.89127417]
[1751626633992,0.11029624,108930.0,108920.0,1.81789946]
[1751626634492,0.11029624,108930.0,108920.0,1.89127472]
[1751626637501,0.11029624,108930.0,108920.0,1.39068736]
[1751626637699,0.11029624,108930.0,108920.0,1.89127472]
[1751626638506,0.11029624,108930.0,108920.0,1.51127472]
[1751626638700,0.36058992,108930.0,108920.0,1.51127472]
[1751626638900,0.36058992,108930.0,108920.0,1.50927472]
[1751626638901,0.36258992,108930.0,108920.0,1.50927472]
[1751626639201,0.36458992,108930.0,108920.0,1.50827472]
[1751626639701,0.54813232,108930.0,108920.0,0.94903476]
[1751626639899,0.61263232,108930.0,108920.0,1.19932844]
[1751626640403,0.61263232,108930.0,108920.0,0.94903476]
[1751626640605,0.61263232,108930.0,108920.0,1.19932844]
[1751626641105,0.36233864,108930.0,108920.0,1.19932844]
[1751626641396,0.36233864,108930.0,108920.0,0.80722844]
[1751626641603,0.61263232,108930.0,108920.0,0.73385318]
[1751626642504,0.61263232,108930.0,108920.0,0.80722844]
[1751626643797,0.17879624,108930.0,108920.0,1.73832212]
[1751626644101,0.36233864,108930.0,108920.0,1.77092212]
[1751626644703,0.36233864,108930.0,108920.0,1.80212212]
[1751626645299,0.36233864,108930.0,108920.0,1.44132212]
[1751626645695,0.36233864,108930.0,108920.0,1.31517654]
[1751626645903,0.36233864,108930.0,108920.0,1.80212212]
[1751626646202,0.36233864,108930.0,108920.0,1.48212212]
[1751626648401,0.61263232,108930.0,108920.0,1.48212212]
[1751626650804,0.36233864,108930.0,108920.0,1.48212212]
[1751626651005,0.61263232,108930.0,108920.0,1.48212212]
[1751626651300,0.61263232,108930.0,108920.0,0.98153476]
[1751626651603,0.61263232,108930.0,108920.0,1.48212212]
[1751626651994,0.61263232,108930.0,108920.0,0.98153476]
[1751626652190,0.36233864,108930.0,108920.0,1.48212212]
[1751626652905,0.61263232,108930.0,108920.0,1.48212212]
[1751626653201,0.32973864,108930.0,108920.0,1.48212212]
[1751626653411,0.29783864,108930.0,108920.0,1.48212212]
[1751626653705,0.26533864,108930.0,108920.0,1.79212212]
[1751626653900,0.26533864,108930.0,108920.0,1.82372212]
[1751626654104,0.08179624,108930.0,108920.0,1.82372212]
[1751626655499,0.08179624,108930.0,108920.0,1.75034686]
[1751626657206,0.00698688,108930.0,108920.0,1.75034686]
[1751626665110,0.00698688,108930.0,108920.0,1.51376201]
[1751626665409,0.00698688,108930.0,108920.0,1.89376201]
[1751626667206,0.00698688,108930.0,108920.0,1.53296201]
[1751626667411,0.00698688,108930.0,108920.0,1.89376201]
[1751626674910,0.00698688,108930.0,108920.0,1.53296201]
[1751626675118,0.00698688,108930.0,108920.0,1.89376201]
[1751626676217,0.00698688,108930.0,108920.0,1.82034686]
[1751626676422,0.00698688,108930.0,108920.0,2.07064054]
[1751626676624,0.00698688,108930.0,108920.0,2.16241966]
[1751626678816,0.00698688,108930.0,108920.0,2.18183117]
[1751626682526,0.00698688,108930.0,108920.0,2.43053117]
[1751626684122,0.0617,108950.0,108940.0,0.1835255]
[1751626684328,0.2117,108950.0,108940.0,1.72491286]
[1751626684629,0.2117,108950.0,108940.0,1.78921286]
[1751626686029,0.2217,108950.0,108940.0,1.79121286]
[1751626687130,0.2197,108950.0,108940.0,1.79121286]
[1751626689437,0.4032087,108950.0,108940.0,1.79121286]
[1751626690132,0.3982087,108950.0,108940.0,1.79021286]
[1751626690334,0.4012087,108950.0,108940.0,1.79021286]
[1751626691234,0.4012087,108950.0,108940.0,1.42941286]
[1751626691536,0.4012087,108950.0,108940.0,1.79021286]
[1751626692236,0.4012087,108950.0,108940.0,1.41021286]
[1751626692436,0.156,108950.0,108940.0,1.72021286]
[1751626692639,0.156,108950.0,108940.0,1.75121286]
[1751626695240,0.3395087,108950.0,108940.0,1.75121286]
[1751626695641,0.3696087,108950.0,108940.0,1.75121286]
[1751626697743,0.3696087,108950.0,108940.0,1.72021286]
[1751626698444,0.1861,108950.0,108940.0,1.72021286]
[1751626698742,0.3696087,108950.0,108940.0,1.72021286]
[1751626698942,0.3696087,108950.0,108940.0,1.793594]
[1751626703947,0.2196087,108950.0,108940.0,1.793594]
[1751626706952,0.2196087,108950.0,108940.0,1.29300664]
[1751626707151,0.2196087,108950.0,108940.0,1.793594]
[1751626707449,0.006,108950.0,108940.0,1.793594]
[1751626707652,0.006,108950.0,108940.0,2.07648768]
[1751626707952,0.2802957,108960.0,108950.0,0.68409606]
[1751626708143,0.3702957,108960.0,108950.0,1.43660238]
[1751626708344,0.3702957,108960.0,108950.0,1.50998352]
[1751626708949,0.39298022,108960.0,108950.0,1.43660238]
[1751626709150,0.39298022,108960.0,108950.0,1.43760238]
[1751626709351,0.39598022,108960.0,108950.0,1.43760238]
[1751626709649,0.39898022,108960.0,108950.0,1.43760238]
[1751626710252,0.39498022,108960.0,108950.0,1.43660238]
[1751626710447,0.39698022,108960.0,108950.0,1.43760238]
[1751626711353,0.30698022,108960.0,108950.0,1.43760238]
[1751626711755,0.30698022,108960.0,108950.0,1.46830238]
[1751626712355,0.30698022,108960.0,108950.0,1.47751768]
[1751626712758,0.30698022,108960.0,108950.0,1.227224]
[1751626712954,0.30698022,108960.0,108950.0,1.47751768]
[1751626714556,0.30698022,108960.0,108950.0,1.46830238]
[1751626715660,0.30698022,108960.0,108950.0,1.23830238]
[1751626716358,0.30698022,108960.0,108950.0,0.87750238]
[1751626716559,0.30698022,108960.0,108950.0,1.23830238]
[1751626718763,0.30698022,108960.0,108950.0,0.87750238]
[1751626719063,0.2842957,108960.0,108950.0,0.87750238]
[1751626719466,0.53458938,108960.0,108950.0,0.5965087]
[1751626719671,0.53458938,108960.0,108950.0,0.84680238]
[1751626723175,0.53458938,108960.0,108950.0,0.81480238]
[1751626727884,0.55733011,108960.0,108950.0,0.81480238]
[1751626729184,0.55733011,108960.0,108950.0,0.81480228]
[1751626730485,0.91813011,108960.0,108950.0,0.63129368]
[1751626730686,0.91813011,108960.0,108950.0,0.81480238]
[1751626732686,0.91813011,108960.0,108950.0,0.5645087]
[1751626732987,0.91813011,108960.0,108950.0,0.81480238]
[1751626734889,0.89538938,108960.0,108950.0,0.81480238]
[1751626735090,0.91813779,108960.0,108950.0,0.81480238]
[1751626736286,0.55733779,108960.0,108950.0,0.81480238]
[1751626736486,0.91813779,108960.0,108950.0,0.81480238]
[1751626736888,1.16843147,108960.0,108950.0,0.63129368]
[1751626737087,0.91813779,108960.0,108950.0,0.63129368]
[1751626737689,1.16843147,108960.0,108950.0,0.63129368]
[1751626738090,0.91813779,108960.0,108950.0,0.63129368]
[1751626740590,0.55733779,108960.0,108950.0,0.63129368]
[1751626740792,0.91813779,108960.0,108950.0,0.63129368]
[1751626744500,0.91813779,108960.0,108950.0,0.381]
[1751626744797,0.91813779,108960.0,108950.0,0.63129368]
[1751626744997,1.16843147,108960.0,108950.0,0.66339368]
[1751626745800,0.91813779,108960.0,108950.0,0.66339368]
[1751626747894,0.91813779,108960.0,108950.0,0.69599368]
[1751626748996,1.16843147,108960.0,108950.0,0.69599368]
[1751626749197,0.91813779,108960.0,108950.0,0.69599368]
[1751626749498,0.55733779,108960.0,108950.0,0.87950238]
[1751626749699,0.91813779,108960.0,108950.0,0.87950238]
[1751626752094,1.16843147,108960.0,108950.0,0.67339368]
[1751626752599,1.16843147,108960.0,108950.0,0.85690238]
[1751626753099,0.91813779,108960.0,108950.0,0.85690238]
[1751626755096,0.91813779,108960.0,108950.0,0.88920238]
[1751626757501,0.52423779,108960.0,108950.0,0.88920238]
[1751626757704,0.88503779,108960.0,108950.0,0.88920238]
[1751626759297,1.72099779,108960.0,108950.0,0.88920238]
[1751626759803,1.69019779,108960.0,108950.0,0.88920238]
[1751626760101,1.69019779,108960.0,108950.0,0.92090238]
[1751626763804,0.85423779,108960.0,108950.0,0.92090238]
[1751626764004,1.68983779,108960.0,108950.0,0.92090238]
[1751626765399,1.32903779,108960.0,108950.0,0.92090238]
[1751626765604,1.29613779,108960.0,108950.0,0.92090238]
[1751626766106,1.29597779,108960.0,108950.0,1.26428352]
[1751626766607,1.29597779,108960.0,108950.0,1.19090238]
[1751626766906,1.29597779,108960.0,108950.0,1.26428352]
[1751626768909,1.29597779,108960.0,108950.0,1.19090238]
[1751626770009,1.29597779,108960.0,108950.0,1.26428352]
[1751626770209,1.29597779,108960.0,108950.0,1.19090238]
[1751626771613,1.0226557,108960.0,108950.0,1.62508352]
[1751626771909,1.0225357,108960.0,108950.0,1.8753772]
[1751626772109,1.0225357,108960.0,108950.0,1.62508352]
[1751626773820,0.1874957,108960.0,108950.0,1.62508352]
[1751626778916,0.21027477,108960.0,108950.0,1.55170238]
[1751626781829,0.21027477,108960.0,108950.0,1.19090238]
[1751626782127,0.21027477,108960.0,108950.0,1.55170238]
[1751626788627,0.2102506,108960.0,108950.0,1.55170238]
[1751626788931,0.1874957,108960.0,108950.0,1.62508352]
[1751626794330,0.21025367,108960.0,108950.0,1.26170238]
[1751626797937,0.21025367,108960.0,108950.0,0.90090238]
[1751626798232,0.21025367,108960.0,108950.0,1.26170238]
[1751626800137,0.21025367,108960.0,108950.0,1.17170238]
[1751626800835,0.46054735,108960.0,108950.0,0.9214087]
[1751626801043,0.49124735,108960.0,108950.0,1.17170238]
[1751626801241,0.46848938,108960.0,108950.0,1.24508352]
[1751626803843,0.2181957,108960.0,108950.0,1.24508352]
[1751626805845,0.2181957,108960.0,108950.0,1.21338352]
[1751626806142,0.85204505,108960.0,108950.0,0.77920238]
[1751626806543,0.85204505,108960.0,108950.0,0.87920238]
[1751626807047,0.49124505,108960.0,108950.0,0.87920238]
[1751626807246,0.50088938,108960.0,108950.0,0.87920238]
[1751626807447,0.52364388,108960.0,108950.0,0.87920238]
[1751626808749,0.50088938,108960.0,108950.0,0.95258352]
[1751626809445,0.50088938,108960.0,108950.0,0.70228984]
[1751626809644,0.50088938,108960.0,108950.0,0.95258352]
[1751626815652,0.2505957,108960.0,108950.0,0.95258352]
[1751626815852,0.50088938,108960.0,108950.0,0.95258352]
[1751626817652,0.2505957,108960.0,108950.0,0.95258352]
[1751626817853,0.50088938,108960.0,108950.0,0.95258352]
[1751626818353,0.52372826,108960.0,108950.0,0.87920238]
[1751626818847,0.52372826,108960.0,108950.0,0.6289087]
[1751626819053,0.52372826,108960.0,108950.0,0.87920238]
[1751626821859,0.27343458,108960.0,108950.0,0.87920238]
[1751626824762,0.52372826,108960.0,108950.0,0.87920238]
[1751626825255,0.52372826,108960.0,108950.0,0.95258352]
[1751626825460,0.50088938,108960.0,108950.0,0.95258352]
[1751626827064,0.52372861,108960.0,108950.0,0.87920238]
[1751626827560,0.27343493,108960.0,108950.0,1.15920238]
[1751626827749,0.49132861,108960.0,108950.0,1.15920238]
[1751626828161,0.24103493,108960.0,108950.0,1.15920238]
[1751626829257,0.24103493,108960.0,108950.0,0.9089087]
[1751626829458,0.24103493,108960.0,108950.0,1.15920238]
[1751626829660,0.24103493,108960.0,108950.0,1.19230238]
[1751626831464,0.24103493,108960.0,108950.0,1.55310238]
[1751626831766,0.24103493,108960.0,108950.0,1.3028087]
[1751626831965,0.24103493,108960.0,108950.0,1.55310238]
[1751626833267,0.21033493,108960.0,108950.0,1.55310238]
[1751626836567,0.02683923,108960.0,108950.0,1.80339606]
[1751626838864,0.02483923,108960.0,108950.0,2.05368974]
[1751626839058,0.1834726,108980.0,108970.0,0.1834746]
[1751626839263,0.18162391,108980.0,108970.0,1.73531782]
[1751626839478,0.18162391,108980.0,108970.0,1.57982414]
[1751626840270,0.18162391,108980.0,108970.0,1.58893768]
[1751626841671,0.19062391,108980.0,108970.0,1.58993768]
[1751626846078,0.19062391,108980.0,108970.0,1.22993768]
[1751626846271,0.19062391,108980.0,108970.0,1.56993768]
[1751626846568,0.009,108980.0,108970.0,1.82023136]
[1751626846773,0.25625524,108990.0,108980.0,0.1834578]
[1751626846972,0.25625524,108990.0,108980.0,1.41904516]
[1751626847169,0.25625524,108990.0,108980.0,1.45234516]
[1751626847369,0.25625524,108990.0,108980.0,1.4528386]
[1751626847677,0.50654892,108990.0,108980.0,1.4528386]
[1751626847976,0.25625524,108990.0,108980.0,1.4528386]
[1751626848976,0.25625524,108990.0,108980.0,0.95225124]
[1751626849170,0.53754892,108990.0,108980.0,1.4528386]
[1751626849476,0.53754892,108990.0,108980.0,1.16924492]
[1751626849675,0.57294892,108990.0,108980.0,1.17024492]
[1751626850175,0.57294892,108990.0,108980.0,0.91995124]
[1751626850378,0.57294892,108990.0,108980.0,1.17024492]
[1751626852377,0.57594892,108990.0,108980.0,1.17024492]
[1751626852773,0.57194892,108990.0,108980.0,1.16924492]
[1751626852972,0.57194892,108990.0,108980.0,1.17024492]
[1751626853174,0.57394892,108990.0,108980.0,1.17024492]
[1751626855278,0.57394892,108990.0,108980.0,0.80944492]
[1751626855778,0.60524892,108990.0,108980.0,0.77704492]